fUSD/lending_fUSD_20251011
["ID","MTS","AMOUNT","RATE_DAILY","PERIOD"]
[390889892,1760196504516,250.0,0.00013603,7]
[390889932,1760196632160,-29.72755286,0.00013699,2]
[390889935,1760196632171,-1098.11256135,0.00013705,2]
[390889942,1760196632334,-901.88743865,0.00013705,2]
[390889943,1760196632345,-250.0,0.00013712,2]
[390889944,1760196632358,-2500.0,0.00013712,2]
[390889945,1760196632368,-300.0,0.00013725,2]
[390889946,1760196632379,-2500.0,0.00013752,2]
[390889947,1760196632390,-771.04835497,0.00013807,2]
[390889948,1760196632400,-1218.30979315,0.00014148,2]
[390889949,1760196632411,-160.64,0.00014262,2]
[390889950,1760196632420,-1200.0,0.000143,5]
[390889951,1760196632431,-1200.0,0.00014399,2]
[390889952,1760196632441,-302.13342851,0.000144,5]
[390889953,1760196632453,-2097.86657149,0.000144,5]
[390889954,1760196632463,-287.0,0.00014404,2]
[390889955,1760196632474,-818.27158091,0.00014405,2]
[390889956,1760196632484,-468.0,0.00014468,2]
[390889957,1760196632494,-3600.0,0.000145,5]
[390889958,1760196632504,-150.0,0.00014549,2]
[390889959,1760196632514,-379.50386134,0.00014549,2]
[390889960,1760196632524,-316.31307033,0.00014549,2]
[390889961,1760196632534,-3406.86223591,0.0001455,2]
[390889962,1760196632546,-925.10525915,0.0001455,2]
[390889963,1760196632558,-713.83442561,0.0001455,2]
[390889964,1760196632570,-1401.20495247,0.0001455,2]
[390889965,1760196632582,-963.64376955,0.0001455,2]
[390889966,1760196632598,-486.87103,0.0001455,2]
[390889967,1760196632612,-2933.58272139,0.0001455,2]
[390889968,1760196632652,-3508.70572972,0.0001455,2]
[390889969,1760196632665,-4075.95994171,0.0001455,2]
[390889970,1760196632677,-12907.37445381,0.0001455,2]
[390889971,1760196632689,-17728.03363056,0.0001455,2]
[390889972,1760196632710,-605.71259571,0.0001455,2]
[390889973,1760196632722,-2027.56452034,0.0001455,2]
[390889974,1760196632732,-1088.04691504,0.0001455,2]
[390889975,1760196632745,-751.56119844,0.0001455,2]
[390889977,1760196632755,-215.0,0.00014557,2]
[390889978,1760196632766,-542.11498145,0.00014575,2]
[390889979,1760196632778,-609.83448956,0.00014575,2]
[390889980,1760196632790,-807.913,0.00014575,2]
[390889981,1760196638258,-1052.681047,0.00014549,2]
[390889982,1760196638270,-262.749721,0.00014549,2]
[390889983,1760196638324,-523.68252711,0.00014549,2]
[390889984,1760196638334,-540.13752899,0.00014575,2]
[390889985,1760196638344,-6104.49741702,0.00014576,2]
[390889986,1760196638354,-4800.0,0.000146,5]
[390889987,1760196638364,-6104.49741696,0.00014612,2]
[390889988,1760196638374,-6104.49741696,0.00014648,2]
[390889989,1760196638384,-898.97,0.00014666,2]
[390889990,1760196638397,-271.98858888,0.00014666,2]
[390889991,1760196638406,-151.0,0.00014666,2]
[390889992,1760196638415,-151.0,0.00014666,2]
[390889993,1760196638424,-151.0,0.00014666,2]
[390889994,1760196638439,-151.0,0.00014666,2]
[390889995,1760196638593,-151.0,0.00014666,2]
[390889996,1760196638621,-151.0,0.00014666,2]
[390889997,1760196638630,-151.0,0.00014666,2]
[390889998,1760196638642,-151.0,0.00014666,2]
[390889999,1760196638651,-151.0,0.00014666,2]
[390890000,1760196638661,-151.0,0.00014666,2]
[390890001,1760196638670,-151.0,0.00014666,2]
[390890002,1760196638680,-237.74699853,0.00014674,2]
[390890003,1760196638689,-117163.5133331,0.00014675,2]
[390890004,1760196638699,-472.7638557,0.00014675,2]
[390890005,1760196638708,-500.0,0.00014676,2]
[390890006,1760196638719,-5904.012034,0.00014679,2]
[390890008,1760196638729,-674.2900412,0.00014679,2]
[390890010,1760196638739,-6104.49741696,0.00014684,2]
[390890012,1760196638749,-151.0,0.00014691,2]
[390890014,1760196638759,-1700.0057,0.00014691,2]
[390890016,1760196638769,-375.63679533,0.00014696,2]
[390890018,1760196638778,-6000.0,0.000147,5]
[390890020,1760196638787,-6104.49741696,0.0001472,2]
[390890022,1760196638797,-168.0,0.00014723,2]
[390890024,1760196638806,-168.0,0.00014734,2]
[390890026,1760196638815,-6104.49741696,0.00014756,2]
[390890028,1760196638825,-495.0,0.00014782,2]
[390890030,1760196638834,-745.04,0.00014782,2]
[390890032,1760196638844,-6104.49741696,0.00014792,2]
[390890034,1760196638854,-620.4255467,0.000148,2]
[390890036,1760196638864,-1200.0,0.000148,5]
[390890038,1760196638873,-666.0,0.00014825,3]
[390890040,1760196638883,-6104.49741696,0.00014828,2]
[390890042,1760196638893,-168.0,0.00014844,2]
[390890044,1760196638903,-495.0,0.00014851,2]
[390890046,1760196638912,-168.0,0.00014855,2]
[390890048,1760196638922,-168.0,0.00014863,2]
[390890050,1760196638931,-6104.49741696,0.00014864,2]
[390890052,1760196638941,-168.0,0.00014866,2]
[390890054,1760196638951,-168.0,0.00014886,2]
[390890056,1760196638960,-620.42554667,0.00014894,2]
[390890058,1760196638969,-34976.94697246,0.000149,2]
[390890060,1760196638978,-6104.49741696,0.000149,2]
[390890062,1760196638988,-1200.0,0.000149,5]
[390890064,1760196638997,-1135.0449819,0.000149,2]
[390890066,1760196639007,-202.5709958,0.000149,2]
[390890068,1760196639016,-191.64836349,0.000149,2]
[390890070,1760196639026,-2575.82818364,0.000149,2]
[390890072,1760196639035,-171.76978453,0.000149,2]
[390890074,1760196639044,-201.55781785,0.000149,2]
[390890076,1760196639054,-898.97,0.0001494,2]
[390890078,1760196639063,-495.0,0.00014967,2]
[390890080,1760196639073,-500.0,0.00014973,2]
[390890082,1760196639082,-500.0,0.00014973,2]
[390890084,1760196639092,-500.0,0.00014973,2]
[390890085,1760196639101,-500.0,0.00014973,2]
[390890088,1760196639111,-500.0,0.00014973,2]
[390890090,1760196639122,-500.0,0.00014973,2]
[390890092,1760196639134,-500.0,0.00014973,2]
[390890094,1760196639146,-500.0,0.00014973,2]
[390890096,1760196639156,-500.0,0.00014973,2]
[390890098,1760196639166,-59008.0,0.00014986,2]
[390890100,1760196639175,-620.42554667,0.00014988,2]
[390890102,1760196639185,-745.04,0.0001499,2]
[390890104,1760196639195,-155.66914229,0.0001499,2]
[390890106,1760196639205,-155.66914229,0.0001499,2]
[390890108,1760196639215,-155.66914229,0.0001499,2]
[390890110,1760196639225,-168.0,0.00014991,2]
[390890112,1760196639235,-168.0,0.00014991,2]
[390890114,1760196639245,-151.0,0.00014997,2]
[390890116,1760196639255,-8313752.61441337,0.00015,2]
[390890118,1760196639265,-500.0,0.00015,2]
[390890120,1760196639280,-977029.59667512,0.00015,2]
[390890123,1760196639308,-2918.46764344,0.00015,2]
[390890125,1760196639320,-497.42210047,0.00015,2]
[390890128,1760196639331,-4065.80000001,0.00015,2]
[390890130,1760196639343,-4035.39051205,0.00015,2]
[390890132,1760196639367,-472.09048088,0.00015,2]
[390890134,1760196639378,-401.616215,0.00015,2]
[390890231,1760196640301,-298.58,0.00014665,2]
[390890232,1760196640312,-298.58,0.00014746,2]
[390890234,1760196640322,-298.58,0.0001489,2]
[390890236,1760196640334,-288.01,0.00014976,2]
[390890239,1760196640346,-10.57,0.00014976,2]
[390890241,1760196640355,-298.58,0.0001499,2]
[390890242,1760196640366,-570.8801178,0.00015,2]
[390890243,1760196640401,-1654.10827272,0.00015,2]
[390890249,1760196640464,-2780.59593106,0.00015,2]
[390890251,1760196640475,-269.36548125,0.00015,2]
[390890253,1760196640487,-157477.63763717,0.00015,2]
[390890256,1760196640498,-4611.76540006,0.00015,2]
[390890258,1760196640513,-407.2427,0.00015,2]
[390890260,1760196640525,-1000.0,0.00015,2]
[390890270,1760196640574,-28186.25999999,0.00015,2]
[390890585,1760196643477,-166.66,0.00014945,2]
[390890587,1760196643487,-5670.94345878,0.00015,2]
[390890589,1760196643498,-25059.34708095,0.00015,2]
[390890591,1760196643509,-1772.23774069,0.00015,2]
[390890593,1760196643518,-5393.48314712,0.00015,2]
[390890595,1760196643529,-7247.01493911,0.00015,2]
[390890919,1760196646720,-11671.9445107,0.00015,2]
[390890921,1760196646732,-934.70256517,0.00015,2]
[390890942,1760196646909,-418.06931013,0.00015,2]
[390890944,1760196646920,-3813.91009867,0.00015,2]
[390891600,1760196796742,500.0,0.00027394,120]
[390891605,1760196807089,3195.58,0.00027397,120]
[390891627,1760197218604,44500.0,0.00027397,120]
[390891639,1760197832572,-501.64312512,0.0001392,2]
[390891640,1760197832622,-698.35687488,0.0001392,2]
[390891641,1760197832632,-300.0,0.0001392,2]
[390891642,1760197832642,-1200.0,0.0001392,2]
[390891643,1760197832657,-300.0,0.0001392,2]
[390891644,1760197832666,-523.27553014,0.0001392,2]
[390891645,1760197832679,-391.2107439,0.0001392,2]
[390891646,1760197832691,-818.77634352,0.0001392,2]
[390891647,1760197832700,-1785.36689009,0.0001392,2]
[390891648,1760197832711,-714.63310991,0.0001392,2]
[390891649,1760197832721,-250.0,0.0001392,2]
[390891650,1760197832731,-300.0,0.0001392,2]
[390891651,1760197832740,-371.17584041,0.0001392,2]
[390891652,1760197832751,-1651.11386167,0.0001392,2]
[390891653,1760197832760,-300.0,0.0001392,2]
[390891654,1760197832770,-500.0,0.0001392,2]
[390891655,1760197832780,-500.0,0.0001392,2]
[390891656,1760197832790,-645.55855774,0.0001392,2]
[390891657,1760197832800,-17199.9,0.00013921,2]
[390891658,1760197832811,-300.0,0.0001393,2]
[390891659,1760197832821,-175.53,0.00013969,2]
[390891660,1760197832831,-1600.0,0.00014033,2]
[390891661,1760197832841,-250.0,0.0001412,2]
[390891662,1760197832851,-438.0,0.0001412,2]
[390891663,1760197832861,-151.0,0.00014409,2]
[390891664,1760197832870,-151.0,0.00014409,2]
[390891665,1760197832880,-151.0,0.00014409,2]
[390891666,1760197832890,-151.0,0.00014409,2]
[390891667,1760197832899,-169.87406304,0.00014409,2]
[390891668,1760197832909,-151.0,0.00014409,2]
[390891669,1760197832918,-200.0,0.00014409,2]
[390891670,1760197832931,-150.0,0.00014416,2]
[390891671,1760197832941,-8629.65822279,0.00014417,2]
[390891672,1760197832950,-1413.04367547,0.00014466,2]
[390891673,1760197832963,-85.95632453,0.00014466,2]
[390891674,1760197832973,-1499.0,0.00014547,2]
[390891675,1760197832982,-1499.0,0.00014598,2]
[390891676,1760197832991,-1499.0,0.00014643,2]
[390891679,1760197833000,-724.0,0.00014675,2]
[390891682,1760197833010,-555.72076483,0.00014781,2]
[390891685,1760197833020,-1499.0,0.00014889,2]
[390891688,1760197833030,-2056.37053712,0.00014889,2]
[390891691,1760197833039,-487.08444643,0.00014936,2]
[390891694,1760197833049,-1499.0,0.00014988,2]
[390891697,1760197833058,-571.19669038,0.00015,2]
[390891700,1760197833068,-15557.8234242,0.00015,2]
[390891703,1760197833079,-1014.68785954,0.00015,2]
[390891705,1760197833091,-922.13592424,0.00015,2]
[390891708,1760197833103,-1124.87406304,0.00015,2]
[390891720,1760197833215,-3750.535422,0.00015,2]
[390891723,1760197833226,-67799.76187757,0.00015,2]
[390891725,1760197833236,-261.29546927,0.00015,3]
[390891727,1760197833245,-151.0,0.00015,2]
[390891729,1760197833255,-4428.0090255,0.00015,2]
[390891731,1760197833264,-498.00571979,0.00015,2]
[390891733,1760197833274,-505.7175309,0.00015,2]
[390891735,1760197833283,-160.0,0.00015,2]
[390891737,1760197833293,-7993.9853355,0.00015,2]
[390891739,1760197833302,-301.17,0.00015023,2]
[390891741,1760197833312,-1499.0,0.00015026,2]
[390891743,1760197833322,-166.42289897,0.00015053,2]
[390891745,1760197833331,-168.0,0.00015053,2]
[390891747,1760197833341,-150.0,0.00015054,2]
[390891749,1760197833350,-152.95865123,0.00015054,2]
[390891751,1760197833360,-500.0,0.00015054,2]
[390891753,1760197833370,-150.0,0.00015054,2]
[390891755,1760197833380,-150.0,0.00015054,2]
[390891757,1760197833389,-500.0,0.00015054,2]
[390891759,1760197833399,-150.0,0.00015054,2]
[390891761,1760197833408,-200.0,0.00015054,2]
[390891763,1760197833417,-500.0,0.00015054,2]
[390891765,1760197833428,-150.0,0.00015054,2]
[390891766,1760197833439,-150.0,0.00015054,2]
[390891767,1760197833448,-150.0,0.00015054,2]
[390891768,1760197833458,-967.0,0.00015054,2]
[390891769,1760197833467,-150.0,0.00015054,2]
[390891770,1760197833477,-500.0,0.00015054,2]
[390891771,1760197833487,-300.0,0.00015068,2]
[390891772,1760197833498,-168.0,0.00015105,2]
[390891773,1760197833508,-150.0,0.00015109,2]
[390891774,1760197833517,-500.0,0.00015109,2]
[390891775,1760197833526,-150.0,0.00015109,2]
[390891776,1760197833535,-150.0,0.00015109,2]
[390891777,1760197833545,-500.0,0.00015109,2]
[390891778,1760197833555,-150.0,0.00015109,2]
[390891779,1760197833564,-500.0,0.00015109,2]
[390891780,1760197833574,-219.06945103,0.00015109,2]
[390891781,1760197833583,-967.0,0.00015109,2]
[390891782,1760197833593,-200.0,0.00015109,2]
[390891783,1760197833602,-500.0,0.00015109,2]
[390891784,1760197833612,-1499.0,0.0001513,2]
[390891785,1760197833621,-500.0,0.00015152,2]
[390891786,1760197833632,-150.0,0.00015164,2]
[390891787,1760197833642,-500.0,0.00015164,2]
[390891788,1760197833654,-273.97473461,0.00015164,2]
[390891789,1760197833664,-150.0,0.00015164,2]
[390891790,1760197833673,-500.0,0.00015164,2]
[390891791,1760197833683,-200.0,0.00015164,2]
[390891792,1760197833693,-500.0,0.00015164,2]
[390891793,1760197833703,-967.0,0.00015164,2]
[390891794,1760197833712,-500.0,0.00015164,2]
[390891795,1760197833722,-1000.0,0.00015216,2]
[390891796,1760197833732,-2500.0,0.00015216,2]
[390891797,1760197833741,-150.0,0.00015218,2]
[390891798,1760197833751,-500.0,0.00015218,2]
[390891799,1760197833760,-271.20458247,0.00015218,2]
[390891800,1760197833770,-500.0,0.00015218,2]
[390891801,1760197833780,-500.0,0.00015218,2]
[390891802,1760197833789,-967.0,0.00015218,2]
[390891803,1760197833799,-500.0,0.00015218,2]
[390891804,1760197833808,-420.0,0.00015252,2]
[390891805,1760197833818,-150.0,0.00015265,2]
[390891806,1760197833827,-150.0,0.00015265,2]
[390891807,1760197833836,-150.0,0.00015265,2]
[390891808,1760197833846,-150.0,0.00015265,2]
[390891809,1760197833855,-1123.72,0.00015265,2]
[390891810,1760197833865,-150.0,0.00015273,2]
[390891811,1760197833874,-500.0,0.00015273,2]
[390891812,1760197833884,-500.0,0.00015273,2]
[390891813,1760197833893,-500.0,0.00015273,2]
[390891814,1760197833903,-967.0,0.00015273,2]
[390891815,1760197833912,-500.0,0.00015273,2]
[390891816,1760197833923,-3187.52955498,0.0001528,2]
[390891817,1760197833932,-168.0,0.00015285,2]
[390891818,1760197833942,-1517.64,0.000153,2]
[390891819,1760197833952,-545.5455,0.000153,2]
[390891820,1760197833961,-1000.0,0.000153,2]
[390891821,1760197833971,-168.0,0.00015305,2]
[390891822,1760197833981,-300.0,0.00015312,2]
[390891823,1760197833990,-300.0,0.00015312,2]
[390891824,1760197834000,-195.0,0.00015312,2]
[390891825,1760197834010,-300.0,0.00015312,2]
[390891826,1760197834019,-151.64688807,0.00015312,2]
[390891827,1760197834029,-195.0,0.00015312,2]
[390891828,1760197834038,-195.0,0.00015312,2]
[390891829,1760197834047,-250.0,0.00015312,2]
[390891830,1760197834056,-300.0,0.00015312,2]
[390891831,1760197834066,-2500.0,0.00015312,2]
[390891832,1760197834076,-195.0,0.00015312,2]
[390891833,1760197834085,-435.42027378,0.00015312,2]
[390891834,1760197834094,-300.0,0.00015312,2]
[390891835,1760197834103,-2500.0,0.00015312,2]
[390891836,1760197834113,-195.0,0.00015312,2]
[390891837,1760197834123,-154.16367623,0.00015312,2]
[390891838,1760197834132,-2500.0,0.00015312,2]
[390891839,1760197834142,-2000.0,0.00015312,2]
[390891840,1760197834152,-1680.0,0.00015313,2]
[390891841,1760197834162,-495.0,0.00015315,2]
[390891842,1760197834171,-150.0,0.0001532,2]
[390891843,1760197834182,-150.0,0.0001532,2]
[390891844,1760197834191,-256.83781408,0.0001532,2]
[390891845,1760197834201,-250.0,0.00015328,2]
[390891846,1760197834210,-500.0,0.00015328,2]
[390891847,1760197834219,-500.0,0.00015328,2]
[390891848,1760197834229,-500.0,0.00015328,2]
[390891849,1760197834239,-967.0,0.00015328,2]
[390891850,1760197834248,-500.0,0.00015328,2]
[390891851,1760197834257,-8565.75555911,0.0001534,2]
[390891852,1760197834267,-1000.0,0.0001534,2]
[390891853,1760197834277,-646.65982734,0.0001534,2]
[390891854,1760197834286,-469.65739621,0.0001534,2]
[390891855,1760197834295,-1000.0,0.0001534,2]
[390891856,1760197834305,-1000.0,0.0001534,2]
[390891857,1760197834315,-1000.0,0.0001534,2]
[390891858,1760197834325,-1000.0,0.0001534,2]
[390891859,1760197834335,-1000.0,0.0001534,2]
[390891860,1760197834345,-321.58623686,0.0001534,2]
[390891861,1760197834355,-248.71531821,0.0001534,2]
[390891862,1760197834364,-417.12263502,0.0001534,2]
[390891863,1760197834373,-1000.0,0.0001534,2]
[390891864,1760197834383,-1000.0,0.0001534,2]
[390891865,1760197834392,-1000.0,0.0001534,2]
[390891866,1760197834402,-1000.0,0.0001534,2]
[390891867,1760197834412,-1143.48903813,0.0001534,2]
[390891868,1760197834423,-1084.82216075,0.0001534,2]
[390891869,1760197834432,-424.5090077,0.0001534,2]
[390891870,1760197834445,-75.4909923,0.0001534,2]
[390891871,1760197834455,-375.09490004,0.0001534,2]
[390891878,1760197838705,-1104.0,0.00015109,2]
[390891879,1760197838718,-1104.0,0.00015164,2]
[390891880,1760197838728,-106.2,0.00015219,2]
[390891881,1760197838740,-843.40421857,0.00015219,2]
[390891882,1760197838755,-154.39578143,0.00015219,2]
[390891884,1760197838764,-406.04895685,0.00015273,2]
[390891885,1760197838776,-697.95104315,0.00015273,2]
[390891886,1760197838785,-151.0,0.000153,2]
[390891887,1760197838795,-661.04895685,0.00015328,2]
[390892060,1760197840570,-442.95104315,0.00015328,2]
[390892062,1760197840580,-124.90509996,0.0001534,2]
[390892064,1760197840590,-500.0,0.0001534,2]
[390892066,1760197840600,-500.0,0.0001534,2]
[390892068,1760197840610,-300.0,0.0001534,2]
[390892069,1760197840619,-322.6107,0.0001534,2]
[390892071,1760197840636,-150.0,0.00015375,2]
[390892073,1760197840647,-250.0,0.00015375,2]
[390892076,1760197840657,-500.0,0.00015383,2]
[390892077,1760197840667,-500.0,0.00015383,2]
[390892080,1760197840678,-500.0,0.00015383,2]
[390892082,1760197840687,-967.0,0.00015383,2]
[390892084,1760197840699,-500.0,0.00015383,2]
[390892086,1760197840708,-1104.0,0.00015383,2]
[390892088,1760197840719,-8882.6885148,0.00015395,2]
[390892090,1760197840729,-11217.23700133,0.000154,2]
[390892092,1760197840738,-501.39767496,0.000154,2]
[390892094,1760197840748,-500.0,0.00015426,2]
[390892096,1760197840757,-150.0,0.00015429,2]
[390892098,1760197840767,-19301.8716,0.00015432,2]
[390892100,1760197840776,-1499.0,0.00015435,2]
[390892102,1760197840785,-500.0,0.00015438,2]
[390892103,1760197840794,-500.0,0.00015438,2]
[390892105,1760197840803,-500.0,0.00015438,2]
[390892107,1760197840813,-967.0,0.00015438,2]
[390892109,1760197840822,-500.0,0.00015438,2]
[390892111,1760197840831,-1104.0,0.00015438,2]
[390892113,1760197840840,-9211.34798985,0.0001545,2]
[390892115,1760197840849,-168.0,0.00015453,2]
[390892117,1760197840859,-168.0,0.00015453,2]
[390892119,1760197840868,-1499.0,0.00015471,2]
[390892121,1760197840877,-452.67106458,0.00015474,15]
[390892123,1760197840887,-500.0,0.00015492,2]
[390892125,1760197840902,-225.0,0.00015492,2]
[390892127,1760197840919,-500.0,0.00015492,2]
[390892129,1760197840930,-967.0,0.00015492,2]
[390892131,1760197840941,-500.0,0.00015492,2]
[390892133,1760197840951,-1104.0,0.00015493,2]
[390892135,1760197840961,-9552.16786547,0.00015505,2]
[390892137,1760197840970,-1123.72,0.00015539,2]
[390892139,1760197840980,-255.0,0.00015541,2]
[390892141,1760197840991,-500.0,0.00015547,2]
[390892144,1760197841001,-526.22904728,0.00015547,2]
[390892146,1760197841010,-967.0,0.00015547,2]
[390892148,1760197841021,-500.0,0.00015547,2]
[390892150,1760197841031,-1104.0,0.00015547,2]
[390892152,1760197841040,-168.0,0.00015551,2]
[390892154,1760197841049,-495.0,0.00015559,2]
[390892156,1760197841059,-8601.75881716,0.0001556,2]
[390892158,1760197841069,-168.0,0.00015575,2]
[390892160,1760197841079,-500.0,0.00015602,2]
[390892162,1760197841089,-967.0,0.00015602,2]
[390892164,1760197841099,-500.0,0.00015602,2]
[390892166,1760197841108,-1104.0,0.00015602,2]
[390892168,1760197841121,-500.0,0.00015657,2]
[390892170,1760197841131,-967.0,0.00015657,2]
[390892172,1760197841140,-500.0,0.00015657,2]
[390892174,1760197841149,-1104.0,0.00015657,2]
[390892177,1760197841160,-162.62600476,0.00015679,2]
[390892178,1760197841169,-500.0,0.000157,2]
[390892181,1760197841187,-1499.0,0.00015705,2]
[390892183,1760197841198,-500.0,0.00015712,2]
[390892185,1760197841208,-967.0,0.00015712,2]
[390892187,1760197841217,-500.0,0.00015712,2]
[390892189,1760197841227,-1104.0,0.00015712,2]
[390892191,1760197841236,-174.7535336,0.0001575,2]
[390892193,1760197841246,-500.0,0.00015766,2]
[390892195,1760197841255,-967.0,0.00015766,2]
[390892197,1760197841264,-500.0,0.00015766,2]
[390892198,1760197841275,-1104.0,0.00015767,2]
[390892199,1760197841285,-2048.0,0.00015779,2]
[390892200,1760197841294,-3405.0,0.00015779,2]
[390892201,1760197841304,-740.0,0.00015779,2]
[390892202,1760197841314,-1266.0,0.00015779,2]
[390892204,1760197841325,-1309.0,0.00015779,2]
[390892206,1760197841334,-588.532,0.00015779,2]
[390892207,1760197841344,-1587.0,0.00015779,2]
[390892208,1760197841354,-626.783,0.00015779,2]
[390892209,1760197841364,-822.0,0.00015779,2]
[390892210,1760197841373,-6536.147,0.00015779,2]
[390892211,1760197841383,-4120.0,0.00015779,2]
[390892212,1760197841394,-622.0,0.00015779,2]
[390892213,1760197841404,-1600.0,0.00015787,2]
[390892214,1760197841414,-1123.72,0.00015813,2]
[390892215,1760197841424,-168.0,0.00015814,2]
[390892216,1760197841435,-500.0,0.00015819,2]
[390892217,1760197841444,-500.0,0.00015819,2]
[390892218,1760197841454,-500.0,0.00015819,2]
[390892219,1760197841463,-500.0,0.00015821,2]
[390892220,1760197841472,-967.0,0.00015821,2]
[390892221,1760197841482,-500.0,0.00015821,2]
[390892222,1760197841491,-1104.0,0.00015821,2]
[390892223,1760197841501,-151.0,0.00015833,2]
[390892224,1760197841510,-151.0,0.00015833,2]
[390892225,1760197841519,-151.0,0.00015833,2]
[390892226,1760197841528,-151.0,0.00015833,2]
[390892227,1760197841537,-1233.0,0.00015833,2]
[390892228,1760197841547,-1233.0,0.00015833,2]
[390892229,1760197841556,-1233.0,0.00015833,2]
[390892230,1760197841567,-168.0,0.00015849,2]
[390892231,1760197841576,-1499.0,0.00015854,2]
[390892232,1760197841585,-175.9,0.00015871,2]
[390892233,1760197841594,-175.9,0.00015871,2]
[390892234,1760197841603,-175.9,0.00015871,2]
[390892235,1760197841613,-175.9,0.00015871,2]
[390892236,1760197841622,-500.0,0.00015876,2]
[390892237,1760197841898,-967.0,0.00015876,2]
[390892238,1760197841947,-500.0,0.00015876,2]
[390892239,1760197841959,-1104.0,0.00015876,2]
[390892240,1760197841968,-168.0,0.00015908,2]
[390892241,1760197841978,-500.0,0.00015911,2]
[390892242,1760197841987,-500.0,0.00015911,2]
[390892243,1760197841996,-504.67142996,0.00015911,2]
[390892244,1760197842006,-500.0,0.00015911,2]
[390892245,1760197842016,-500.0,0.00015918,2]
[390892246,1760197842025,-500.0,0.00015924,2]
[390892247,1760197842035,-500.0,0.00015924,2]
[390892248,1760197842044,-500.0,0.00015924,2]
[390892249,1760197842053,-167.29639423,0.00015924,2]
[390892250,1760197842063,-500.0,0.00015924,2]
[390892251,1760197842073,-500.0,0.00015931,2]
[390892252,1760197842083,-967.0,0.00015931,2]
[390892253,1760197842092,-500.0,0.00015931,2]
[390892254,1760197842101,-1104.0,0.00015931,2]
[390892255,1760197842111,-5000.0,0.00015953,2]
[390892256,1760197842120,-500.0,0.00015974,2]
[390892257,1760197842131,-500.0,0.00015986,2]
[390892258,1760197842140,-967.0,0.00015986,2]
[390892259,1760197842150,-500.0,0.00015986,2]
[390892260,1760197842160,-1104.0,0.00015986,2]
[390892261,1760197842169,-151.0,0.00016,2]
[390892262,1760197842180,-151.0,0.00016,2]
[390892263,1760197842189,-151.0,0.00016,2]
[390892264,1760197842199,-151.0,0.00016,2]
[390892265,1760197842208,-151.0,0.00016,2]
[390892266,1760197842217,-151.0,0.00016,2]
[390892267,1760197842227,-151.0,0.00016,2]
[390892268,1760197842236,-151.0,0.00016,2]
[390892269,1760197842245,-151.0,0.00016,2]
[390892270,1760197842254,-95898.30099201,0.00016,2]
[390892271,1760197842263,-3074.0,0.00016025,2]
[390892272,1760197842272,-500.0,0.00016027,2]
[390892273,1760197842282,-264.0,0.0001604,2]
[390892274,1760197842296,-967.0,0.0001604,2]
[390892275,1760197842305,-500.0,0.0001604,2]
[390892276,1760197842317,-1104.0,0.00016041,2]
[390892277,1760197842327,-150.0,0.00016053,2]
[390892278,1760197842338,-6190.46397218,0.00016053,2]
[390892279,1760197842348,-150.0,0.00016053,2]
[390892280,1760197842358,-589.78448211,0.00016053,2]
[390892281,1760197842368,-150.0,0.00016053,2]
[390892282,1760197842377,-6049.43986066,0.00016053,2]
[390892283,1760197842387,-150.0,0.00016053,2]
[390892284,1760197842399,-52747.66901195,0.00016053,2]
[390892285,1760197842415,-3498.8999992,0.00016053,2]